bitfinex/quotes_ETHUSD_20250214
["timestamp","ask_amount","ask_price","bid_price","bid_amount"]
[1739533363011,3.71362,2692.8,2692.2,0.4755]
[1739533363215,0.7991,2693.1,2692.2,0.4755]
[1739533363410,3.71366,2692.8,2692.3,3.0]
[1739533363731,3.71366,2692.8,2692.4,0.718981]
[1739533363901,3.71386,2692.7,2692.4,0.718981]
[1739533364097,0.7991,2692.7,2692.2,0.4755]
[1739533364337,3.71418,2692.4,2692.1,0.005]
[1739533364832,3.71402,2692.5,2692.1,0.005]
[1739533365438,3.71402,2692.5,2692.2,0.419518]
[1739533366347,3.71423,2692.4,2692.2,0.419518]
[1739533366519,3.71423,2692.4,2692.1,0.005]
[1739533366843,3.71396,2692.6,2692.1,0.005]
[1739533367049,3.71396,2692.6,2691.6,0.94184791]
[1739533367050,3.7991,2692.1,2690.7,0.18896891]
[1739533367199,3.71666,2690.6,2690.1,0.001]
[1739533367406,0.451576,2690.6,2690.1,0.001]
[1739533367629,4.5146,2691.5,2690.2,0.4755]
[1739533367911,4.5139,2692.0,2691.3,3.71558]
[1739533368133,3.71494,2691.9,2691.2,4.2808]
[1739533368333,3.71512,2691.7,2691.1,3.0]
[1739533368540,3.71512,2691.7,2691.2,0.55]
[1739533368751,3.71486,2691.9,2691.2,4.26581]
[1739533368913,3.71486,2691.9,2691.2,0.55]
[1739533369102,3.71509,2691.8,2691.2,0.55]
[1739533369305,3.71509,2691.8,2691.3,0.726589]
[1739533369506,4.51393,2692.0,2691.3,0.726589]
[1739533369754,3.71486,2691.9,2691.3,0.726589]
[1739533369908,3.71483,2692.0,2691.3,0.726589]
[1739533370106,3.71483,2692.0,2691.3,6.90712053]
[1739533370331,3.71444,2692.2,2691.4,4.78242719]
[1739533370544,3.71444,2692.2,2691.5,3.71531]
[1739533370753,3.71458,2692.1,2691.6,3.0]
[1739533370958,3.7146,2692.1,2691.6,3.0]
[1739533371466,3.71443,2692.2,2691.6,7.27262]
[1739533371761,3.71421,2692.4,2691.6,8.12237472]
[1739533371762,3.71431,2692.3,2691.6,8.12237472]
[1739533372124,3.71421,2692.4,2691.8,3.71496]
[1739533372356,3.71417,2692.4,2691.8,3.71496]
[1739533373123,3.71417,2692.4,2691.8,3.71489]
[1739533373336,3.71417,2692.4,2691.6,8.12245472]
[1739533373337,3.71417,2692.4,2691.6,8.12240472]
[1739533373524,3.71417,2692.4,2691.7,4.52726047]
[1739533373719,3.71417,2692.4,2691.8,3.71487]
[1739533373915,3.71443,2692.2,2691.7,4.52726047]
[1739533374117,3.71443,2692.2,2691.7,0.81224047]
[1739533374421,3.71441,2692.3,2691.7,4.52735047]
[1739533374658,3.71447,2692.2,2691.7,0.81224047]
[1739533374855,3.71447,2692.2,2691.6,8.12242472]
[1739533375165,3.71479,2692.0,2691.6,4.40725472]
[1739533375367,3.71447,2692.2,2691.6,4.40725472]
[1739533375737,3.71469,2692.1,2691.7,0.06693048]
[1739533376431,3.71447,2692.2,2691.7,0.885888]
[1739533377069,3.03828267,2692.6,2691.7,0.06693048]
[1739533377245,3.71498,2691.8,2691.7,0.06693048]
[1739533377445,3.71561,2691.4,2690.9,9.2255]
[1739533377636,3.71561,2691.4,2691.0,0.06778826]
[1739533378025,4.47805,2691.9,2691.0,0.06778826]
[1739533378026,3.7159,2691.2,2691.0,0.06778826]
[1739533378230,3.71613,2691.0,2690.4,3.71684]
[1739533378475,3.7159,2691.2,2690.5,3.06840123]
[1739533378677,3.71604,2691.1,2690.5,3.80315551]
[1739533378976,3.7159,2691.2,2690.7,3.0]
[1739533379136,3.7159,2691.2,2690.7,1.05197855]
[1739533379336,3.7159,2691.2,2690.8,0.06803342]
[1739533379560,7.43184,2691.2,2690.8,0.06803342]
[1739533379736,3.7159,2691.2,2690.7,3.0]
[1739533379935,7.43183,2691.2,2690.9,0.06791084]
[1739533380166,7.43182,2691.2,2690.8,0.06803342]
[1739533380348,3.71559,2691.4,2691.0,0.06778826]
[1739533380531,3.71534,2691.6,2691.0,0.06778826]
[1739533380532,3.71534,2691.6,2691.1,3.71593]
[1739533380732,0.282,2692.2,2691.4,0.565]
[1739533380733,3.71451,2692.2,2691.4,0.565]
[1739533380935,3.71451,2692.2,2691.5,3.7154]
[1739533381178,7.876801,2692.2,2691.6,3.72268]
[1739533381471,4.162271,2692.2,2691.7,0.06776372]
[1739533381630,3.71478,2692.0,2691.7,0.06776372]
[1739533381831,3.71495,2691.9,2691.4,3.0]
[1739533382088,3.71491,2691.9,2691.5,0.06800875]
[1739533382232,3.71522,2691.7,2691.5,0.06800875]
[1739533382570,3.71548,2691.5,2691.3,8.75]
[1739533382779,3.71548,2691.5,2690.9,4.19164]
[1739533382780,3.71548,2691.5,2691.1,3.0]
[1739533382937,3.71548,2691.5,2690.9,4.19164]
[1739533383138,3.71548,2691.5,2691.0,3.0]
[1739533383342,4.534865,2691.5,2691.0,3.0]
[1739533383801,3.71548,2691.5,2691.0,6.71608]
[1739533384469,3.71548,2691.5,2691.0,3.71608]
[1739533384660,3.71548,2691.5,2691.1,3.0]
[1739533388877,3.71527,2691.6,2691.1,6.71586]
[1739533389503,4.47834,2691.7,2691.1,3.0]
[1739533389655,4.926174,2691.7,2691.1,3.0]
[1739533389852,4.926244,2691.7,2691.1,3.0]
[1739533390053,4.24931667,2691.7,2690.3,0.4755]
[1739533390269,3.71623,2690.9,2690.4,3.7169]
[1739533390470,3.71605,2691.1,2690.5,3.71673]
[1739533390681,3.71616,2691.0,2690.5,3.78347247]
[1739533390865,3.71623,2690.9,2690.5,0.06674247]
[1739533391069,3.71623,2690.9,2690.5,3.0]
[1739533391256,3.71655,2690.7,2690.6,0.06661986]
[1739533391595,0.818606,2690.7,2690.3,3.0]
[1739533391912,8.18605,2690.8,2690.3,3.0]
[1739533392097,3.7165,2690.7,2690.4,0.06686509]
[1739533392911,0.7532,2690.8,2690.4,0.06686509]
[1739533393397,3.71657,2690.7,2690.3,3.0]
[1739533393597,3.71657,2690.7,2690.5,0.06674247]
[1739533393905,3.71657,2690.7,2690.6,0.06661986]
[1739533394261,3.71657,2690.7,2690.3,3.0]
[1739533394603,0.7532,2690.8,2690.4,3.78376509]
[1739533395102,3.71602,2691.1,2690.5,3.71678]
[1739533395511,3.71602,2691.1,2690.6,0.06686445]
[1739533395809,7.43208,2691.1,2690.6,0.06686445]
[1739533396005,3.71623,2690.9,2690.6,0.06686445]
[1739533396376,3.71641,2690.8,2690.3,7.26705]
[1739533396921,3.71641,2690.8,2690.4,0.0670992]
[1739533397132,3.71658,2690.7,2690.4,0.0670992]
[1739533397265,4.459674,2690.8,2690.4,0.0670992]
[1739533397612,3.71661,2690.7,2690.4,0.0670992]
[1739533397899,3.7166,2690.7,2690.4,0.0670992]
[1739533398107,4.4698,2690.7,2690.4,0.0670992]
[1739533398262,3.71665,2690.6,2690.3,3.0]
[1739533398463,1.6461474,2690.7,2690.4,0.0670992]
[1739533399099,0.8929474,2690.7,2690.4,0.0670992]
[1739533399301,3.71651,2690.7,2690.4,0.0670992]
[1739533399513,7.43289,2690.8,2690.4,0.0670992]
[1739533400009,3.71654,2690.7,2690.4,0.0670992]
[1739533401367,3.71627,2690.9,2690.4,0.0670992]
[1739533401571,3.71644,2690.8,2690.4,0.0670992]
[1739533402373,3.71627,2690.9,2690.4,0.0670992]
[1739533402589,3.71659,2690.7,2690.4,0.0670992]
[1739533402901,3.71659,2690.7,2690.5,0.06697658]
[1739533403302,3.71659,2690.7,2690.2,6.7171]
[1739533403503,3.71659,2690.7,2690.6,0.06685396]
[1739533403669,0.371627,2690.8,2690.2,3.0]
[1739533403870,3.7165,2690.7,2690.3,0.06722183]
[1739533404102,3.7165,2690.7,2690.2,6.7171]
[1739533404302,4.087997,2690.8,2690.4,0.06732281]
[1739533404489,4.087997,2690.8,2690.3,3.78442544]
[1739533404683,4.088017,2690.8,2690.3,3.78442544]
[1739533404882,3.71639,2690.8,2690.3,3.78442544]
[1739533406477,3.71636,2690.8,2690.3,3.78446544]
[1739533406677,3.71636,2690.8,2690.4,3.71691]
[1739533406891,3.71636,2690.8,2690.5,0.06720018]
[1739533407714,7.43234,2691.0,2690.5,3.78391018]
[1739533407925,4.534714,2691.0,2690.5,3.78391018]
[1739533408096,3.71616,2691.0,2690.5,3.78389018]
[1739533408394,3.71616,2691.0,2690.6,3.71662]
[1739533408719,8.18505,2691.2,2690.7,0.06694099]
[1739533408891,3.71619,2691.0,2690.7,0.06694099]
[1739533409216,3.71625,2690.9,2690.5,3.71669]
[1739533409419,3.71609,2691.0,2690.5,3.71669]
[1739533409796,7.4323,2691.0,2690.6,0.06706359]
[1739533410000,3.71623,2690.9,2690.6,0.06706359]
[1739533412121,3.71623,2690.9,2690.4,3.71691]
[1739533412294,3.71623,2690.9,2690.7,0.06692002]
[1739533412495,3.71623,2690.9,2690.4,3.71691]
[1739533412705,3.71623,2690.9,2690.5,0.06716524]
[1739533413021,3.71609,2691.0,2690.5,3.78387524]
[1739533413315,3.7163,2690.9,2690.5,0.06716524]
[1739533413715,3.7163,2690.9,2690.5,3.06716524]
[1739533414213,3.71601,2691.1,2690.6,3.71656]
[1739533414417,3.71631,2690.9,2690.5,0.54266524]
[1739533414618,7.43267,2690.9,2690.6,0.06706359]
[1739533414818,7.43267,2690.9,2690.4,3.0]
[1739533415119,3.71638,2690.8,2690.5,0.06712678]
[1739533415306,3.71631,2690.9,2690.5,0.06712678]
[1739533416053,3.71639,2690.8,2690.5,0.06712678]
[1739533416179,3.71637,2690.8,2690.3,6.71703]
[1739533416533,3.71637,2690.8,2690.4,0.06725639]
[1739533418348,3.71623,2690.9,2690.4,3.78415639]
[1739533418483,3.71621,2691.0,2690.6,3.0]
[1739533418684,3.71621,2691.0,2690.5,3.06713377]
[1739533418685,3.7162,2691.0,2690.5,3.06713377]
[1739533418906,3.71626,2690.9,2690.7,0.06688856]
[1739533419114,3.71617,2691.0,2690.5,6.71675]
[1739533419294,3.71617,2691.0,2690.8,0.06676596]
[1739533419507,3.716,2691.1,2690.6,3.71655]
[1739533419680,3.716,2691.1,2690.9,0.06664338]
[1739533419881,3.716,2691.1,2690.6,3.71655]
[1739533420116,3.716,2691.1,2691.0,0.0665208]
[1739533420319,3.71595,2691.1,2690.6,3.71655]
[1739533420624,3.71595,2691.1,2691.0,0.0665208]
[1739533420852,3.71595,2691.1,2690.7,0.06688856]
[1739533421053,3.71611,2691.0,2690.6,0.85310436]
[1739533421230,3.71611,2691.0,2690.8,0.06676596]
[1739533421555,3.71595,2691.1,2690.6,4.56974436]
[1739533421850,0.7532,2691.2,2690.7,0.75697444]
[1739533422019,4.46907,2691.2,2690.7,7.540313]
[1739533422538,3.71596,2691.1,2690.7,3.823863]
[1739533424632,4.46901,2691.2,2690.7,7.540293]
[1739533425250,0.7532,2691.2,2690.7,7.540293]
[1739533425451,3.71601,2691.1,2690.7,3.823863]
[1739533425832,3.71601,2691.1,2690.7,3.78335856]
[1739533426855,3.71601,2691.1,2690.7,0.06688856]
[1739533428067,4.46902,2691.2,2690.7,3.78336856]
[1739533428220,3.71596,2691.1,2690.7,3.78336856]
[1739533428975,3.71596,2691.1,2690.7,0.06688856]
[1739533429342,3.71596,2691.1,2690.7,3.78336856]
[1739533429905,3.71596,2691.1,2690.7,0.06688856]
[1739533430240,3.71636,2690.8,2690.7,0.06688856]
[1739533430641,3.71674,2690.6,2690.2,0.4755]
[1739533430862,3.71674,2690.6,2690.2,3.4755]
[1739533431381,3.71664,2690.6,2690.2,0.4755]
[1739533432636,3.7169,2690.5,2690.1,0.001]
[1739533432842,0.7562,2690.7,2690.1,0.001]
[1739533432843,3.71673,2690.6,2690.1,0.001]
[1739533433074,3.71673,2690.6,2690.1,3.001]
[1739533433982,3.71673,2690.6,2690.1,6.71825]
[1739533434181,3.71673,2690.6,2690.1,7.494134]
[1739533434677,3.71673,2690.6,2690.2,3.71718]
[1739533434869,3.71673,2690.6,2690.1,7.494184]
[1739533435280,3.71673,2690.6,2690.1,3.001]
[1739533435446,3.71673,2690.6,2690.1,6.71833]
[1739533435860,3.71673,2690.6,2690.2,0.06519914]
[1739533436180,3.71671,2690.6,2690.2,0.06519914]
[1739533436385,3.71678,2690.5,2690.2,0.06519914]
[1739533437111,3.71671,2690.6,2690.2,0.06519914]
[1739533437416,3.71679,2690.5,2690.2,0.06519914]
[1739533437886,4.47272,2690.7,2690.2,0.06519914]
[1739533438447,3.71664,2690.6,2690.2,0.06519914]
[1739533438857,3.71684,2690.5,2690.2,0.06519914]
[1739533439062,4.47272,2690.7,2690.2,0.06519914]
[1739533439063,3.71668,2690.6,2690.2,0.06519914]
[1739533439445,3.71673,2690.6,2690.2,0.06519914]
[1739533440070,3.71689,2690.5,2690.2,0.06519914]
[1739533440465,3.71673,2690.6,2690.2,0.06519914]
[1739533441211,3.71684,2690.5,2690.2,0.06519914]
[1739533442013,3.71673,2690.6,2690.2,0.06519914]
[1739533442489,3.7168,2690.5,2690.2,0.06519914]
[1739533443091,7.43369,2690.5,2690.2,0.06519914]
[1739533443279,3.71696,2690.4,2690.2,0.06519914]
[1739533444081,6.94474092,2690.3,2690.2,9.14e-06]
[1739533444325,4.52849,2690.2,2690.1,0.001]
[1739533444481,3.7183,2689.4,2689.3,0.4755]
[1739533444828,3.7183,2689.4,2689.3,0.06196258]
[1739533445297,4.461942,2689.4,2689.3,0.06196258]
[1739533445503,4.461942,2689.4,2689.2,0.1468085]
[1739533445718,0.8113,2689.9,2689.3,3.0]
[1739533445931,3.71755,2690.0,2689.4,3.78017565]
[1739533446272,3.71777,2689.8,2689.4,0.06189565]
[1739533446469,3.71816,2689.5,2689.4,0.06189565]
[1739533446643,3.71803,2689.6,2689.2,0.6223085]
[1739533446797,3.71816,2689.5,2689.4,0.06210147]
[1739533446996,3.71816,2689.5,2689.3,0.06223815]
[1739533447228,3.71816,2689.5,2689.4,0.06211542]
[1739533447434,4.52933,2689.6,2689.4,0.06211542]
[1739533447598,3.71838,2689.4,2689.2,0.1468085]
[1739533448538,3.71843,2689.3,2689.2,0.1468085]
[1739533451011,3.71843,2689.3,2688.5,0.005]
[1739533451012,3.7194,2688.6,2688.5,0.005]
[1739533451204,3.7194,2688.6,2688.2,0.004]
[1739533451205,3.71968,2688.4,2688.2,0.004]
[1739533451820,3.71968,2688.4,2688.3,0.06625909]
[1739533452041,4.835542,2688.4,2688.3,0.06625909]
[1739533452543,4.835542,2688.4,2688.3,0.005]
[1739533452710,5.646842,2688.4,2688.3,0.005]
[1739533453543,4.53098,2688.4,2688.3,0.005]
[1739533453745,3.71968,2688.4,2688.3,0.005]
[1739533454045,3.71968,2688.4,2688.3,0.06720838]
[1739533454241,3.7194,2688.6,2688.3,0.06720838]
[1739533454537,3.7194,2688.6,2688.4,0.06208557]
[1739533454718,3.71954,2688.5,2688.4,0.06208557]
[1739533454914,3.71954,2688.5,2688.3,0.005]
[1739533455219,4.572387,2688.6,2688.4,0.06209256]
[1739533455416,1.55788645,2689.0,2688.4,0.06209256]
[1739533455616,0.8113,2689.3,2688.6,3.0]
[1739533456034,3.7188,2689.1,2688.7,0.06160893]
[1739533456401,3.71886,2689.0,2688.7,0.06160893]
[1739533456607,3.71886,2689.0,2688.5,3.4755]
[1739533456830,3.7188,2689.1,2688.8,0.06148615]
[1739533456831,3.7191,2688.9,2688.8,0.06148615]
[1739533457043,3.71914,2688.8,2688.3,0.005]
[1739533457233,3.7191,2688.9,2688.3,0.005]
[1739533457551,3.7191,2688.9,2688.4,0.0619424]
[1739533457938,3.71889,2689.0,2688.5,3.0]
[1739533458251,3.71877,2689.1,2688.6,0.0616968]
[1739533458451,0.8113,2689.3,2688.6,0.0616968]
[1739533458658,0.8113,2689.3,2688.6,3.7809868]
[1739533458659,3.7187,2689.2,2688.6,3.7809868]
[1739533458956,3.71782,2689.8,2688.8,5.47149092]
[1739533459127,7.43569,2689.8,2689.2,3.0]
[1739533459330,0.8113,2689.9,2689.3,0.06078512]
[1739533459331,3.28279092,2689.9,2689.3,0.06078512]
[1739533459522,3.7183,2689.4,2688.7,0.4755]
[1739533459711,3.7183,2689.4,2688.8,0.06139887]
[1739533459913,3.7183,2689.4,2688.8,3.78038887]
[1739533460131,3.71808,2689.6,2688.9,6.71891]
[1739533460327,3.71825,2689.5,2689.0,0.06112192]
[1739533460529,3.71834,2689.4,2689.0,0.06112192]
[1739533461550,3.71852,2689.3,2688.8,0.55]
[1739533461734,3.71852,2689.3,2688.9,0.06111902]
[1739533462264,3.71885,2689.0,2688.9,0.06111902]
[1739533462559,3.71885,2689.0,2688.7,0.4755]
[1739533462757,3.71872,2689.1,2688.8,0.05898094]
[1739533462956,3.71861,2689.2,2688.8,0.05898094]
[1739533463155,3.71861,2689.2,2688.7,0.4755]
[1739533463156,3.71861,2689.2,2688.7,4.19472]
[1739533463342,3.71875,2689.1,2688.7,0.4755]
[1739533463547,3.71875,2689.1,2688.8,0.05899835]
[1739533463743,3.71875,2689.1,2688.7,0.4755]
[1739533463960,3.71873,2689.1,2688.8,0.05899835]
[1739533464457,3.71836,2689.4,2688.8,0.35344984]
[1739533464647,3.71845,2689.3,2688.9,0.05887558]
[1739533464814,3.71866,2689.2,2688.9,0.05887558]
[1739533465018,3.71866,2689.2,2688.7,4.19464]
[1739533465213,7.43736,2689.2,2689.0,0.05875282]
[1739533465419,7.43736,2689.2,2688.7,0.4755]
[1739533465749,3.71866,2689.2,2688.7,3.4755]
[1739533465960,3.71845,2689.3,2688.7,3.4755]
[1739533466145,3.71845,2689.3,2688.8,0.05905755]
[1739533466350,3.71864,2689.2,2688.7,3.4755]
[1739533466567,3.71864,2689.2,2688.8,0.0566646]
[1739533466735,3.71864,2689.2,2688.7,3.4755]
[1739533466936,4.090295,2689.3,2688.8,0.05670291]
[1739533467276,0.371845,2689.3,2688.8,3.71903]
[1739533467503,7.43673,2689.4,2688.8,3.71903]
[1739533467776,3.71832,2689.4,2688.9,0.05658014]
[1739533468139,7.4367,2689.4,2688.9,0.05658014]
[1739533468338,3.71832,2689.4,2688.9,0.05658014]
[1739533468552,4.52312,2689.6,2688.9,0.05658014]
[1739533468755,4.170522,2689.5,2689.0,3.71884]
[1739533468960,4.170522,2689.5,2689.1,0.05629285]
[1739533469163,3.71831,2689.4,2689.1,0.05629285]
[1739533469393,0.452312,2689.5,2688.9,3.71893]
[1739533469722,3.71816,2689.5,2689.2,0.05617011]
[1739533469857,3.71843,2689.3,2688.7,10.91385]
[1739533470176,3.71858,2689.2,2688.7,7.19466]
[1739533470882,3.71884,2689.1,2688.7,3.0]
[1739533471094,3.71882,2689.1,2688.7,3.0]
[1739533471656,4.543054,2689.1,2688.7,3.0]
[1739533472193,3.71892,2689.0,2688.5,3.0]
[1739533472398,3.71892,2689.0,2688.5,6.71947]
[1739533472583,0.824234,2689.1,2688.4,0.4755]
[1739533472793,3.71881,2689.1,2688.7,3.0]
[1739533472974,3.71885,2689.0,2688.7,3.0]
[1739533473294,0.805,2689.3,2688.5,3.0]
[1739533473533,3.71882,2689.1,2688.6,3.71939]
[1739533473673,3.71857,2689.2,2688.5,3.0]
[1739533473884,3.719,2688.9,2688.5,3.0]
[1739533474331,3.719,2688.9,2688.4,4.19508]
[1739533474534,0.452357,2689.2,2688.4,0.4755]
[1739533474832,3.71915,2688.8,2688.3,6.72479]
[1739533475434,3.71899,2688.9,2688.4,3.71965]
[1739533475771,0.805,2689.3,2688.3,3.005]
[1739533476040,4.52351,2689.3,2688.7,3.71917]
[1739533476214,0.452351,2689.2,2688.7,3.71917]
[1739533476418,4.171001,2689.2,2688.7,3.71917]
[1739533476593,0.452351,2689.2,2688.8,0.4755]
[1739533476929,3.71818,2689.5,2689.0,3.71877]
[1739533477142,3.71818,2689.5,2688.8,4.19454]
[1739533477270,0.450258,2689.4,2688.9,3.71898]
[1739533477469,0.450258,2689.4,2688.8,0.4755]
[1739533477674,3.71819,2689.5,2688.9,7.43788]
[1739533478017,3.71836,2689.4,2688.9,3.71899]
[1739533478392,3.71819,2689.5,2689.0,3.71885]
[1739533478595,3.71819,2689.5,2688.8,0.4755]
[1739533478596,4.54024,2689.5,2688.8,0.4755]
[1739533478821,8.25851,2689.5,2688.9,3.71889]
[1739533479022,4.54024,2689.5,2688.9,3.71889]
[1739533480380,4.54024,2689.5,2688.8,4.1945]
[1739533480606,4.54024,2689.5,2688.9,0.05672294]
[1739533480914,8.25849,2689.5,2689.0,3.71883]
[1739533481321,8.25851,2689.5,2689.1,0.05647743]
[1739533481476,0.904291,2689.4,2689.1,0.05647743]
[1739533481681,3.71819,2689.5,2689.1,0.05647743]
[1739533481909,3.71832,2689.4,2689.1,0.05647743]
[1739533482306,3.7185,2689.3,2688.7,6.71922]
[1739533482509,0.7844,2689.6,2688.7,6.71922]
[1739533482706,3.71845,2689.3,2688.8,0.05677257]
[1739533482906,3.71826,2689.5,2689.0,0.4755]
[1739533483221,3.71852,2689.3,2689.1,0.05639035]
[1739533483724,3.71836,2689.4,2688.8,3.71902]
[1739533483883,4.50252,2689.6,2689.2,0.05626761]
[1739533484081,4.50252,2689.6,2689.1,3.71871]
[1739533484290,0.7844,2689.6,2689.1,3.71871]
[1739533484894,4.50244,2689.6,2689.1,3.71871]
[1739533485104,5.324467,2689.6,2689.1,3.71871]
[1739533485317,3.71827,2689.5,2689.2,0.05624323]
[1739533485476,5.324467,2689.6,2689.1,3.71869]
[1739533485683,5.324517,2689.6,2689.1,3.71871]
[1739533485884,5.324517,2689.6,2689.2,0.05620145]
[1739533486224,1.606427,2689.6,2689.2,0.05620145]
[1739533486392,3.71762,2689.9,2689.2,3.77469145]
[1739533486595,4.50202,2689.9,2689.4,3.71821]
[1739533486786,4.50202,2689.9,2689.5,0.0558298]
[1739533486986,3.71777,2689.8,2689.5,0.0558298]
[1739533487194,3.71798,2689.7,2689.2,4.19405]
[1739533487395,3.71798,2689.7,2689.3,0.05607523]
[1739533487723,3.71775,2689.8,2689.3,3.77441523]
[1739533487920,8.21972,2689.9,2689.3,3.77441523]
[1739533488134,9.041692,2689.9,2689.3,3.77441523]
[1739533488288,3.71775,2689.8,2689.3,3.77441523]
[1739533489427,5.324002,2689.9,2689.3,3.77449523]
[1739533489594,3.71781,2689.8,2689.3,3.77449523]
[1739533490201,9.041722,2689.9,2689.4,3.71818]
[1739533490529,9.041722,2689.9,2689.4,3.46778]
[1739533490709,3.71777,2689.8,2689.5,0.05578105]
[1739533490911,1.606372,2689.9,2689.5,0.05578105]
[1739533491111,3.71776,2689.8,2689.5,0.05578105]
[1739533491301,3.71777,2689.8,2689.4,3.71827]
[1739533491496,4.50213,2689.9,2689.6,0.05565835]
[1739533491831,3.71792,2689.7,2689.2,4.19402]
[1739533492585,0.7844,2689.9,2689.4,3.71822]
[1739533492792,0.7844,2689.9,2689.5,3.71805]
[1739533492982,4.52713,2690.1,2689.4,3.71818]
[1739533493182,4.52713,2690.1,2689.3,3.71843]
[1739533493183,4.979843,2690.1,2689.3,3.71843]
[1739533493387,3.71762,2689.9,2689.4,3.71825]
[1739533493685,3.71775,2689.8,2689.3,7.43671]
[1739533493885,3.71775,2689.8,2689.3,3.71835]
[1739533494738,3.71791,2689.7,2689.3,3.71835]
[1739533495024,3.71791,2689.7,2689.3,3.71843]
[1739533495595,3.71791,2689.7,2689.4,0.05565308]
[1739533496768,3.71775,2689.8,2689.4,0.05565308]
[1739533497122,3.71771,2689.9,2689.4,0.05565308]
[1739533497123,3.7179,2689.7,2689.4,0.05565308]
[1739533497420,3.71777,2689.8,2689.4,0.05565308]
[1739533497615,3.71771,2689.9,2689.4,3.77394308]
[1739533498064,3.71774,2689.8,2689.4,3.77394308]
[1739533498223,4.979853,2690.1,2689.4,3.77385308]
[1739533498429,3.71774,2689.9,2689.4,3.77385308]
[1739533498729,0.4979853,2690.0,2689.5,3.71802]
[1739533499040,4.2155653,2690.0,2689.6,0.05544596]
[1739533499246,3.71763,2689.9,2689.6,0.05544596]
[1739533499818,3.71763,2689.9,2689.4,3.71829]
[1739533500015,3.71763,2689.9,2689.7,0.05532327]
[1739533500219,3.71774,2689.8,2689.4,3.71829]
[1739533500482,0.4979853,2690.0,2689.8,0.05520058]
[1739533500619,3.71772,2689.9,2689.4,3.71829]
[1739533500822,3.71757,2690.0,2689.9,0.0550779]
[1739533501067,3.71768,2689.9,2689.4,3.71829]
[1739533501383,3.71768,2689.9,2689.4,3.71823]
[1739533501687,1.262413,2690.1,2689.2,0.4755]
[1739533501823,0.8297,2690.4,2689.8,2.47149092]
[1739533502162,0.8297,2691.0,2690.1,6.18876092]
[1739533502321,3.7159,2691.2,2690.7,3.71649]
[1739533502522,4.5456,2691.2,2690.6,0.4755]
[1739533502848,0.8297,2691.2,2690.2,0.4755]
[1739533503047,4.54643,2690.6,2690.0,4.19296]
[1739533503362,3.71687,2690.5,2690.1,3.0]
[1739533503918,5.001073,2690.6,2689.7,0.4755]
[1739533503919,1.284343,2690.6,2689.7,0.4755]
[1739533504144,0.8297,2690.0,2689.5,0.4755]
[1739533504425,0.8297,2690.0,2689.3,0.4755]
[1739533504426,3.71796,2689.7,2689.3,0.4755]
[1739533505521,3.71779,2689.8,2689.3,3.4755]
[1739533505758,3.71792,2689.7,2689.3,3.4755]
[1739533505963,3.71857,2689.2,2688.9,0.4755]
[1739533506264,3.71857,2689.2,2688.6,10.38560092]
[1739533506432,3.71857,2689.2,2688.7,6.71926]
[1739533506632,0.8147,2689.4,2688.6,0.4755]
[1739533506833,7.43787,2689.0,2688.3,6.67181092]
[1739533507034,7.43787,2689.0,2688.3,0.4805]
[1739533507035,3.71951,2688.6,2688.3,0.4805]
[1739533507341,3.71955,2688.5,2688.3,0.005]
[1739533507871,3.71935,2688.7,2688.3,0.005]
[1739533507872,7.43875,2688.7,2688.3,0.005]
[1739533508023,3.71959,2688.5,2688.3,0.005]
[1739533508217,3.71955,2688.5,2688.3,0.005]
[1739533508421,7.43922,2688.5,2688.3,0.005]
[1739533508624,3.71968,2688.4,2688.3,0.005]
[1739533510690,3.71968,2688.4,2688.3,0.06056827]
[1739533510971,4.463603,2688.4,2688.3,0.06056827]
[1739533511157,4.463603,2688.4,2688.3,0.005]
[1739533511361,4.463603,2688.4,2688.3,0.06061705]
[1739533512072,0.8147,2688.8,2688.3,0.06061705]
[1739533512243,3.71941,2688.6,2688.3,0.06061705]
[1739533512450,3.7194,2688.7,2688.3,0.06061705]
[1739533512645,3.71941,2688.6,2688.3,0.06061705]
[1739533513377,3.71956,2688.5,2688.3,0.06061705]
[1739533513573,3.71968,2688.4,2688.3,0.06061705]
[1739533514076,3.7193,2688.7,2688.3,0.06061705]
[1739533514282,4.1727,2688.7,2688.3,0.06061705]
[1739533514607,3.71945,2688.6,2688.3,0.06061705]
[1739533515379,3.71907,2688.9,2688.3,6.25183797]
[1739533515669,3.71928,2688.7,2688.3,2.53210797]
[1739533516500,3.71917,2688.8,2688.3,6.25188797]
[1739533516831,3.71932,2688.7,2688.3,2.53210797]
[1739533517807,3.71916,2688.8,2688.3,2.53210797]
[1739533517937,3.71928,2688.7,2688.3,3.00760797]
[1739533518593,3.71914,2688.8,2688.3,3.00760797]
[1739533518779,3.71914,2688.8,2688.3,6.72740797]
[1739533519138,3.71948,2688.6,2688.3,2.53210797]
[1739533519337,0.743802,2688.8,2688.3,2.53210797]
[1739533519338,3.71963,2688.5,2688.3,2.53210797]
[1739533519566,3.71934,2688.7,2688.3,2.53210797]
[1739533519944,0.743802,2688.8,2688.3,6.25184797]
[1739533520150,4.462962,2688.8,2688.3,6.25184797]
[1739533520466,0.743802,2688.8,2688.4,2.49566887]
[1739533520649,4.462962,2688.8,2688.4,2.49566887]
[1739533520850,3.71927,2688.7,2688.5,0.05544456]
[1739533521351,0.743802,2688.8,2688.5,0.05544456]
[1739533521551,3.71919,2688.8,2688.5,0.05544456]
[1739533521972,3.71928,2688.7,2688.5,0.05544456]
[1739533523116,3.7194,2688.6,2688.5,0.05544456]
[1739533523474,3.71968,2688.4,2688.3,0.005]
[1739533524168,0.7706,2688.5,2688.3,0.005]
[1739533524388,3.71941,2688.6,2688.3,0.005]
[1739533524676,3.71947,2688.6,2688.3,0.005]
[1739533525016,3.71958,2688.5,2688.3,0.005]